{"text_format":"1","workbook":"xlsx","n_sheets":1,"sheets":["4e"],"not_rendered":{"charts":0,"images":0,"macros":1,"external_links":0,"defined_names":4,"comments":0,"pivot_tables":0},"unopened":[],"bounds":{"document_bytes":16777216,"sheet_cells":100000,"rows_first":2000,"rows_last":500,"rows_between":2000,"halvings":0,"cell_chars":16384,"cell_head_chars":4096},"cells_cut":0,"cells_raw":0,"read":"whole","date_system":"1900"}

{"sheet":"4e","index":0,"n_rows":78,"n_cols":7,"rows_kept":78,"cut":false,"hidden":false,"merged":[[1,0,1,5],[5,3,5,5],[7,3,8,5],[11,0,32,0],[15,1,17,1],[15,2,17,2],[15,3,17,3],[15,4,17,4],[15,5,17,5],[33,0,35,0],[70,1,70,4],[72,0,72,4],[74,0,74,4],[77,0,77,5]]}
[]
["                               COMMANDE DE FOURNITURES SCOLAIRES - 2023 / 2024"]
["Nom & Prénom ELEVE : …...................................................................",null,null,"Date de naissance élève : "]
["Nom & Prénom PARENTS : …..............................................................",null,null,"Date :"]
["Adresse postale : …............................................................................"]
["Numéro de téléphone : ………………………………………………………………………..",null,null,"N° Commande :\nCadre réservé"]
[]
["Email  : ………………………………………………………………………………………………...",null,null,"Votre signature : "]
["(pour confirmation de commande)"]
[]
["CLASSE","4ème","Quantité préconisée (pour info)","Quantité commandée","TARIF UNITAIRE","MONTANT TOTAL"]
["LISTE COMMUNE","lot 4 stylos Frixion (bleu / noir / rouge / vert)",1,null,6.19,{"$f":"E12*D12","v":0}]
[null,"ou lot 4 stylos à bille classiques (bleu / noir / rouge /vert)",1,null,1.39,{"$f":"E13*D13","v":0}]
[null,"Ruban correcteur Wonday, lot de 3",1,null,2.2999999999999998,{"$f":"E14*D14","v":0}]
[null,"chemise 3 rabats ",1,null,0.8,{"$f":"E15*D15","v":0}]
[null,"kit traçage Incassable Maped :\nRègle graduée 30cm, équerre, rapporteur gradué degrés",1,null,3.79,{"$f":"E16*D16","v":0}]
[]
[]
[null,"compas (porte crayon)",1,null,0.89,{"$f":"E19*D19","v":0}]
[null,"bâton de colle - lot de 5, Cléopatre",1,null,1.99,0]
[null,"ciseaux 17 cm, Advanced Maped",1,null,2.89,0]
[null,"12 crayons couleur, Staedtler",1,null,1.49,0]
[null,"crayon HB - lot de 4, Bic",1,null,0.8,0]
[null,"Calculatrice scientifique Casio – FX92",1,null,25.99,0]
[null,"gomme Maped",1,null,0.4,0]
[null,"cahier de brouillon Calligraphe 17 x 22, 96 pages, seyes",3,null,0.4,0]
[null,"copies doubles Cambridge 21x29.7 seyes (300 pages)",1,null,1.99,0]
[null,"feuilles simples  Cambridge 21x29.7 seyes (300 pages)",1,null,1.99,0]
[null,"pochette papier millimétré Clairefontaine (12+3 feuilles)",1,null,1.29,0]
[null,"classeur/maison dos de 20mm , A4, 4 anneaux, Exacompta",1,null,0.99,0]
[null,"2 Feutres Velleda bleu",1,null,1.48,0]
[null,"Gourde pour EPS VIQUEL 500 ml",1,null,14.9,0]
[null,"clé USB 8 Go",1,null,4.9000000000000004,0]
["Offre supplémentaire","Casque Audio",1,null,4.9000000000000004,0]
[null,"surligneur, Stabilo Boss",3,null,0.9,0]
[null,"taille crayon avec réservoir  Igloo Maped",1,null,0.85,0]
["MATIERES"]
["Français","grand classeur souple A4+, dos de 40, Exacompta",1,null,1.49,{"$f":"E38*D38","v":0}]
[null,"grand classeur rigide A4, dos  de 30, Exacompta",1,null,1.49,0]
[null,"6 intercalaires Exacompta",1,null,0.3,0]
[null,"1 dictionnaire Larousse \"Collége\" poche, de langue française",1,null,8.9,0]
[null,"1 Bescherelle de conjugaison poche",1,null,3.95,0]
["Latin-Grec","grand classeur souple A4+, dos de 40, Exacompta",2,null,1.49,0]
[null,"6 intercalaires Exacompta",1,null,0.3,0]
[null,"stylo violet Frixion",1,null,1.59,0]
[null,"stylo orange Frixion",1,null,1.59,0]
["Mathématiques","cahier 24x32 seyes 96 p Clairefontaine Calligraphe couv. Plastique Incolore",3,null,1.39,0]
[null,"OU cahier 24x32 seyes 48 p Clairefontaine Calligraphe couv. Plastique Incolore",6,null,0.85,0]
["Anglais","cahier 24x32 seyes 96 p Clairefontaine Calligraphe couv. Plastique Orange",1,null,1.39,0]
[null,"OU cahier 24x32 seyes 48 p Clairefontaine Calligraphe couv. Plastique Orange",2,null,0.85,0]
[null,"Répertoire 11*17 Clairefontaine (réutiliser celui de l'an dernier)",1,null,1.75,0]
[null,"Dictionnaire français-anglais Larousse Collège poche",1,null,7.99,0]
["Allemand","cahier 24x32 seyes 96 p Clairefontaine Calligraphe  couv. Plastique Gris",1,null,1.39,0]
[null,"OU cahier 24x32 seyes 48 p Clairefontaine Calligraphe  couv. Plastique Gris",2,null,0.85,0]
[null,"dictionnaire français-allemand Larousse Collège poche",1,null,7.99,0]
["Espagnol","cahier 24x32 seyes 96 p Clairefontaine Calligraphe couv. Plastique Violet",1,null,1.39,0]
[null,"OU cahier 24x32 seyes 48 p Clairefontaine Calligraphe couv. Plastique Violet",2,null,0.85,0]
[null,"Feuilles simples 17x22 – 200 pages Clairefontaine",1,null,2.59,0]
[null,"dictionnaire français-espagnol Larousse Collège poche",1,null,7.99,0]
["Histoire Géographie EMC","cahier 24x32 seyes 96 p Clairefontaine Calligraphe  couv. Plastique Rouge",2,null,1.39,0]
[null,"OU cahier 24x32 seyes 48p Clairefontaine Calligraphe couv. Plastique Rouge",4,null,0.85,0]
["Sciences physiques","cahier 24x32 seyes 96 p Clairefontaine Calligraphe  couv. Plastique Bleu",2,null,1.39,0]
[null,"OU cahier 24x32 seyes 48p Clairefontaine Calligraphe couv. Plastique Bleu",4,null,0.85,0]
["SVT","cahier 24x32 seyes 96 pClairefontaine Calligraphe  couv. Plastique Vert",1,null,1.39,0]
[null,"OU cahier 24x32 seyes 48 p Clairefontaine Calligraphe couv. Plastique Vert",2,null,0.85,0]
["Technologie","classeur A4 souple fin, dos de 20, Exacompta (réutiliser celui de l'an dernier)",1,null,0.99,0]
[null,"pochettes transparentes  x50",1,null,1.45,0]
[null,"6 intercalaires Exacompta",1,null,0.3,0]
["Arts plastiques","cahier TP 17x22 96 p Conquérant (possible de réutiliser celui de l'an dernier)",1,null,0.89,0]
["Musique","porte vue 40 vues grand format, Elba ",1,null,1.0900000000000001,0]
[null,"MONTANT TOTAL ARTICLES COMMANDES :",null,null,null,{"$f":"SUM(F12:F70)","v":0}]
[]
["Votre adhésion à la PEEP ; le montant de la cotisation est de 14 € pour l'année (déductible des impots)*",null,null,null,null,"+14,00","UNE SEULE COTISATION DE 14 € PAR FAMILLE (quelque soit le nombre d'enfants)"]
[]
["MONTANT DE MON REGLEMENT :",null,null,null,null,{"$f":"F71+14","v":14}]
[]
["COMMANDE A RETOURNER AU PLUS TARD LE 03/07/2023 - accompagné du chèque de règlement à l'ordre de la PEEP du Collège Camille Claudel - Latresne"]
["Les commandes seront à retirer à Bureau Vallée - Place Stalingrad à Bordeaux à partir du 21 août, muni du numéro de commande attribué dans le mail de confirmation"]